[Event "Groningen Festival 2018-B"]
[Site "Groningen"]
[Date "2018.12.28"]
[Round "7"]
[White "Wissmann, Dolf"]
[Black "Tromp, Pieter"]
[Result "1-0"]
[ECO "B01"]
[WhiteElo "2049"]
[BlackElo "2080"]
[Annotator "NA"]
[PlyCount "61"]
[EventDate "2018.12.22"]
[EventType "swiss"]
[EventCountry "NED"]
[SourceTitle "playchess.com"]
[Source "ChessBase"]
[SourceQuality "1"]
[TimeControl "40/5400+30:1800+30"]

1. e4 {[%emt 0:00:00]} d5 {[%emt 0:00:00]} 2. exd5 {[%emt 0:00:00]} Nf6 {[%emt 0:00:18]} 3. Nf3 {[%emt 0:00:16]} Bg4 {[%emt 0:04:17]} 4. Bb5+ {[%emt 0:01:28]} Nbd7 {[%emt 0:01:40]} 5. Be2 {[%emt 0:00:36]} Nxd5 {[%emt 0:00:30]} 6. d4 {[%emt 0:00:08]} e6 {[%emt 0:03:39]} 7. O-O {[%emt 0:03:21]} Be7 {[%emt 0:02:23]} 8. c4 {[%emt 0:00:25]} N5b6 {[%emt 0:01:23]} 9. b3 {[%emt 0:04:54]} O-O {[%emt 0:07:27]} 10. Nc3 {[%emt 0:03:04]} c5 {[%emt 0:06:03]} 11. Be3 {[%emt 0:03:29]} Bf5 {[%emt 0:12:18]} 12. Qd2 {[%emt 0:01:05]} Bf6 {[%emt 0:07:19]} 13. Rac1 {[%emt 0:07:46]} Qe7 {[%emt 0:06:27]} 14. Rfd1 {[%emt 0:06:58]} cxd4 {[%emt 0:14:11]} 15. Nxd4 {[%emt 0:01:46]} Bxd4 {[%emt 0:00:39]} 16. Bxd4 {[%emt 0:07:08]} e5 {[%emt 0:01:51]} 17. Be3 {[%emt 0:04:45]} Nf6 {[%emt 0:04:15]} 18. Nb5 {[%emt 0:05:03]} Nc8 {[%emt 0:07:31]} 19. Qa5 {[%emt 0:02:18]} b6 {[%emt 0:00:39]} 20. Qe1 {[%emt 0:03:30]} a6 {[%emt 0:03:46]} 21. Nc3 {[%emt 0:04:50]} Ng4 {[%emt 0:02:58]} 22. Bd2 {[%emt 0:03:24]} Nf6 {[%emt 0:02:33]} 23. Bg5 {[%emt 0:03:15]} Qe6 {[%emt 0:01:07]} 24. Bd3 {[%emt 0:06:52]} e4 {[%emt 0:01:17]} 25. Bb1 {[%emt 0:02:39]} Nd6 {[%emt 0:01:17]} 26. Bxf6 {[%emt 0:02:44]} Qxf6 {[%emt 0:01:21]} 27. Nd5 {[%emt 0:00:49]} Qg5 {[%emt 0:00:25]} 28. Qd2 {[%emt 0:03:24]} Qxd2 {[%emt 0:01:17]} 29. Rxd2 {[%emt 0:00:12]} Rad8 {[%emt 0:00:35]} 30. Ne7+ {[%emt 0:00:55]} Kh8 {[%emt 0:00:05]} 31. Nc6 {[%emt 0:05:48]} 1-0

[Event "Groningen Festival 2018-B"]
[Site "Groningen"]
[Date "2018.12.29"]
[Round "8"]
[White "Slagter, Ruben"]
[Black "Haan, Gertjan"]
[Result "0-1"]
[ECO "B20"]
[WhiteElo "2086"]
[BlackElo "1881"]
[Annotator "NA"]
[PlyCount "108"]
[EventDate "2018.12.22"]
[EventType "swiss"]
[EventCountry "NED"]
[SourceTitle "playchess.com"]
[Source "ChessBase"]
[SourceQuality "1"]
[TimeControl "40/5400+30:1800+30"]

1. e4 {[%emt 0:05:36]} c5 {[%emt 0:00:39]} 2. d3 {[%emt 0:00:14]} g6 {[%emt 0:01:20]} 3. g3 {[%emt 0:01:16]} Bg7 {[%emt 0:01:07]} 4. Bg2 {[%emt 0:00:20]} Nc6 {[%emt 0:01:14]} 5. c3 {[%emt 0:01:22]} d6 {[%emt 0:01:04]} 6. Be3 {[%emt 0:00:44]} Nf6 {[%emt 0:00:33]} 7. h3 {[%emt 0:01:01]} O-O {[%emt 0:01:03]} 8. f4 {[%emt 0:01:45]} e5 {[%emt 0:00:41]} 9. Ne2 {[%emt 0:02:19]} Re8 {[%emt 0:03:49]} 10. Nd2 {[%emt 0:17:34]} b6 {[%emt 0:17:48]} 11. c4 {[%emt 0:05:08]} exf4 {[%emt 0:11:31]} 12. Nxf4 {[%emt 0:04:15]} Nd7 {[%emt 0:01:10]} 13. Rb1 {[%emt 0:04:16]} Nde5 {[%emt 0:00:35]} 14. Nf3 {[%emt 0:01:30]} Nxf3+ {[%emt 0:00:51]} 15. Qxf3 {[%emt 0:03:46]} Ne5 {[%emt 0:10:25]} 16. Qe2 {[%emt 0:02:51]} Qg5 {[%emt 0:00:24]} 17. Bf2 {[%emt 0:06:24]} Bb7 {[%emt 0:05:25]} 18. O-O {[%emt 0:05:55]} h5 {[%emt 0:01:13]} 19. Nd5 {[%emt 0:05:14]} Rac8 {[%emt 0:07:17]} 20. Kh2 {[%emt 0:02:57]} Bxd5 {[%emt 0:02:20]} 21. Be3 {[%emt 0:02:14]} Qe7 {[%emt 0:00:06]} 22. cxd5 {[%emt 0:00:23]} h4 {[%emt 0:02:02]} 23. g4 {[%emt 0:02:50]} Nd7 {[%emt 0:03:26]} 24. Qd2 {[%emt 0:01:58]} Be5+ {[%emt 0:00:52]} 25. Kh1 {[%emt 0:00:32]} Bg3 {[%emt 0:00:54]} 26. Bg5 {[%emt 0:03:24]} Qe5 {[%emt 0:02:29]} 27. Rf3 {[%emt 0:01:01]} f6 {[%emt 0:02:31]} 28. Bh6 {[%emt 0:05:50]} c4 {[%emt 0:05:08]} 29. d4 {[%emt 0:00:30]} Qxe4 {[%emt 0:00:30]} 30. Rbf1 {[%emt 0:00:30]} Qe2 {[%emt 0:00:30]} 31. Qb4 {[%emt 0:00:30]} g5 {[%emt 0:00:30]} 32. Rf5 {[%emt 0:00:30]} Re7 {[%emt 0:00:30]} 33. Qa4 {[%emt 0:00:30]} Qd2 {[%emt 0:00:30]} 34. Qa6 {[%emt 0:00:30]} Rce8 {[%emt 0:00:30]} 35. Qxa7 {[%emt 0:00:30]} Ne5 {[%emt 0:00:30]} 36. Qxb6 {[%emt 0:00:30]} Nxg4 {[%emt 0:00:30]} 37. Bxg5 {[%emt 0:00:30]} fxg5 {[%emt 0:00:30]} 38. R5f3 {[%emt 0:00:30]} Nf2+ {[%emt 0:00:30]} 39. R3xf2 {[%emt 0:00:30]} Bxf2 {[%emt 0:00:30]} 40. Qxd6 {[%emt 0:00:30]} Bxd4 {[%emt 0:00:30]} 41. Qg6+ {[%emt 0:30:30]} Bg7 {[%emt 0:30:30]} 42. d6 {[%emt 0:00:30]} Re1 {[%emt 0:00:30]} 43. Qf7+ {[%emt 0:00:30]} Kh7 {[%emt 0:00:30]} 44. d7 {[%emt 0:00:30]} Rf8 {[%emt 0:00:30]} 45. Be4+ {[%emt 0:00:30]} Rxe4 {[%emt 0:00:30]} 46. Qh5+ {[%emt 0:00:30]} Kg8 {[%emt 0:00:30]} 47. Rxf8+ {[%emt 0:00:30]} Kxf8 {[%emt 0:00:30]} 48. Qf3+ {[%emt 0:00:30]} Kg8 {[%emt 0:00:30]} 49. Qxe4 {[%emt 0:00:30]} Qxd7 {[%emt 0:00:30]} 50. Qxc4+ {[%emt 0:00:30]} Kh8 {[%emt 0:00:30]} 51. Kg2 {[%emt 0:00:30]} Qb7+ {[%emt 0:00:30]} 52. Kf2 {[%emt 0:00:30]} Qxb2+ {[%emt 0:00:30]} 53. Kf1 {[%emt 0:00:30]} Qc3 {[%emt 0:00:30]} 54. Qe6 {[%emt 0:00:30]} Qf6+ {[%emt 0:00:30]} 0-1

[Event "Groningen Festival 2018-B"]
[Site "Groningen"]
[Date "2018.12.29"]
[Round "8"]
[White "Kastelijn, Toine"]
[Black "Wissmann, Dolf"]
[Result "0-1"]
[ECO "A57"]
[WhiteElo "1942"]
[BlackElo "2049"]
[Annotator "NA"]
[PlyCount "66"]
[EventDate "2018.12.22"]
[EventType "swiss"]
[EventCountry "NED"]
[SourceTitle "playchess.com"]
[Source "ChessBase"]
[SourceQuality "1"]
[TimeControl "40/5400+30:1800+30"]

1. d4 {[%emt 0:00:00]} Nf6 {[%emt 0:00:00]} 2. c4 {[%emt 0:00:00]} c5 {[%emt 0:00:00]} 3. d5 {[%emt 0:00:20]} b5 {[%emt 0:00:07]} 4. cxb5 {[%emt 0:00:28]} a6 {[%emt 0:00:30]} 5. f3 {[%emt 0:00:50]} axb5 {[%emt 0:01:05]} 6. e4 {[%emt 0:00:23]} Qa5+ {[%emt 0:00:20]} 7. Bd2 {[%emt 0:00:33]} b4 {[%emt 0:00:13]} 8. Na3 {[%emt 0:02:42]} e6 {[%emt 0:06:09]} 9. d6 {[%emt 0:21:31]} Ba6 {[%emt 0:05:03]} 10. e5 {[%emt 0:09:14]} Bxf1 {[%emt 0:01:23]} 11. Kxf1 {[%emt 0:23:15]} Qa6+ {[%emt 0:00:46]} 12. Ne2 {[%emt 0:00:33]} bxa3 {[%emt 0:00:46]} 13. exf6 {[%emt 0:00:09]} axb2 {[%emt 0:02:34]} 14. Rb1 {[%emt 0:02:52]} Qxd6 {[%emt 0:06:45]} 15. Rxb2 {[%emt 0:01:28]} Nc6 {[%emt 0:03:09]} 16. Qb1 {[%emt 0:02:34]} gxf6 {[%emt 0:01:06]} 17. Nc3 {[%emt 0:04:55]} Nb4 {[%emt 0:02:09]} 18. Ne4 {[%emt 0:09:23]} Qa6+ {[%emt 0:01:29]} 19. Kf2 {[%emt 0:01:18]} Nd3+ {[%emt 0:02:13]} 20. Kg3 {[%emt 0:00:53]} Bd6+ {[%emt 0:02:39]} 21. f4 {[%emt 0:01:09]} Nxb2 {[%emt 0:02:06]} 22. Nxf6+ {[%emt 0:00:42]} Ke7 {[%emt 0:01:03]} 23. Qxb2 {[%emt 0:00:28]} Qa3+ {[%emt 0:11:21]} 24. Bc3 {[%emt 0:01:19]} Qxb2 {[%emt 0:00:45]} 25. Bxb2 {[%emt 0:00:07]} Rhb8 {[%emt 0:00:16]} 26. Ba1 {[%emt 0:00:09]} Rxa2 {[%emt 0:06:26]} 27. Ne4 {[%emt 0:04:20]} Rb3+ {[%emt 0:00:52]} 28. Kh4 {[%emt 0:00:23]} Bxf4 {[%emt 0:01:06]} 29. Bf6+ {[%emt 0:00:24]} Ke8 {[%emt 0:01:11]} 30. Nxc5 {[%emt 0:02:19]} Rb4 {[%emt 0:03:02]} 31. Nd3 {[%emt 0:02:01]} Rc4 {[%emt 0:05:18]} 32. Kh3 {[%emt 0:03:42]} Ra3 {[%emt 0:01:04]} 33. Rd1 {[%emt 0:00:17]} Rc1 {[%emt 0:00:30]} 0-1

[Event "Groningen Festival 2018-B"]
[Site "Groningen"]
[Date "2018.12.30"]
[Round "9"]
[White "Mijnheer, Peter \[Compact A\]"]
[Black "Beukema, Stefan \[Compact A\]"]
[Result "0-1"]
[ECO "C47"]
[WhiteElo "2076"]
[BlackElo "2407"]
[Annotator "NA"]
[PlyCount "94"]
[EventDate "2018.12.22"]
[EventType "swiss"]
[EventCountry "NED"]
[SourceTitle "playchess.com"]
[Source "ChessBase"]
[SourceQuality "1"]
[TimeControl "40/5400+30:1800+30"]

1. e4 {[%emt 0:00:00]} e5 {[%emt 0:00:00]} 2. Nf3 {[%emt 0:00:00]} Nc6 {[%emt 0:00:06]} 3. Nc3 {[%emt 0:00:00]} Nf6 {[%emt 0:00:08]} 4. d4 {[%emt 0:00:01]} exd4 {[%emt 0:00:28]} 5. Nxd4 {[%emt 0:00:05]} Bb4 {[%emt 0:00:07]} 6. Nxc6 {[%emt 0:00:12]} bxc6 {[%emt 0:00:08]} 7. Bd3 {[%emt 0:00:10]} d5 {[%emt 0:01:02]} 8. exd5 {[%emt 0:00:06]} cxd5 {[%emt 0:00:04]} 9. O-O {[%emt 0:00:19]} O-O {[%emt 0:00:10]} 10. h3 {[%emt 0:00:45]} c6 {[%emt 0:03:47]} 11. Qf3 {[%emt 0:00:24]} Rb8 {[%emt 0:02:31]} 12. Bf4 {[%emt 0:00:33]} Bd6 {[%emt 0:02:18]} 13. b3 {[%emt 0:00:58]} Rb4 {[%emt 0:02:26]} 14. Bxd6 {[%emt 0:01:48]} Qxd6 {[%emt 0:00:08]} 15. Qg3 {[%emt 0:02:49]} Qxg3 {[%emt 0:09:12]} 16. fxg3 {[%emt 0:00:24]} Be6 {[%emt 0:02:39]} 17. Rf4 {[%emt 0:17:38]} Rb7 {[%emt 0:04:27]} 18. g4 {[%emt 0:02:23]} Nd7 {[%emt 0:01:35]} 19. Re1 {[%emt 0:07:20]} h6 {[%emt 0:03:44]} 20. Na4 {[%emt 0:17:10]} c5 {[%emt 0:08:40]} 21. c4 {[%emt 0:10:48]} Rb4 {[%emt 0:03:56]} 22. Nb2 {[%emt 0:02:09]} Nb6 {[%emt 0:02:21]} 23. Rc1 {[%emt 0:09:01]} Rd8 {[%emt 0:03:10]} 24. Bc2 {[%emt 0:14:36]} dxc4 {[%emt 0:10:12]} 25. a3 {[%emt 0:04:02]} Rb5 {[%emt 0:13:17]} 26. Nxc4 {[%emt 0:01:14]} Nxc4 {[%emt 0:00:23]} 27. bxc4 {[%emt 0:00:14]} Rb2 {[%emt 0:00:17]} 28. Rf2 {[%emt 0:02:49]} g6 {[%emt 0:00:20]} 29. Be4 {[%emt 0:02:46]} Rxf2 {[%emt 0:01:19]} 30. Kxf2 {[%emt 0:00:01]} Rd4 {[%emt 0:00:14]} 31. Bd5 {[%emt 0:00:10]} Bxd5 {[%emt 0:00:21]} 32. cxd5 {[%emt 0:00:19]} Rxd5 {[%emt 0:00:08]} 33. Rc4 {[%emt 0:00:20]} Kg7 {[%emt 0:01:54]} 34. Ke3 {[%emt 0:01:26]} Kf6 {[%emt 0:00:44]} 35. Ra4 {[%emt 0:00:06]} Rd7 {[%emt 0:00:54]} 36. Ke4 {[%emt 0:02:15]} Kg5 {[%emt 0:16:19]} 37. g3 {[%emt 0:00:02]} Kf6 {[%emt 0:01:03]} 38. Ra6+ {[%emt 0:00:26]} Ke7 {[%emt 0:00:09]} 39. Rc6 {[%emt 0:00:51]} Rd4+ {[%emt 0:00:06]} 40. Ke5 {[%emt 0:01:16]} Ra4 {[%emt 0:01:01]} 41. Rxc5 {[%emt 0:31:00]} Rxa3 {[%emt 0:30:05]} 42. Rc7+ {[%emt 0:00:25]} Kf8 {[%emt 0:00:07]} 43. h4 {[%emt 0:00:00]} Rxg3 {[%emt 0:00:00]} 44. h5 {[%emt 0:00:00]} g5 {[%emt 0:00:00]} 45. Kf6 {[%emt 0:00:00]} Rf3+ {[%emt 0:00:00]} 46. Ke5 {[%emt 0:00:00]} a5 {[%emt 0:00:00]} 47. Ra7 {[%emt 0:00:00]} Rf4 {[%emt 0:00:00]} 0-1

[Event "Groningen Festival 2018-B"]
[Site "Groningen"]
[Date "2018.12.30"]
[Round "9"]
[White "Wubben, Marcel \[Compact A\]"]
[Black "Balje, Jan \[Compact A\]"]
[Result "0-1"]
[ECO "D47"]
[WhiteElo "1988"]
[BlackElo "2197"]
[Annotator "NA"]
[PlyCount "154"]
[EventDate "2018.12.22"]
[EventType "swiss"]
[EventCountry "NED"]
[SourceTitle "playchess.com"]
[Source "ChessBase"]
[SourceQuality "1"]
[TimeControl "40/5400+30:1800+30"]

1. d4 {[%emt 0:00:00]} d5 {[%emt 0:00:00]} 2. c4 {[%emt 0:00:00]} c6 {[%emt 0:00:01]} 3. e3 {[%emt 0:00:00]} Nf6 {[%emt 0:01:38]} 4. Nc3 {[%emt 0:00:00]} e6 {[%emt 0:01:20]} 5. Nf3 {[%emt 0:00:00]} Nbd7 {[%emt 0:00:07]} 6. Bd3 {[%emt 0:00:16]} dxc4 {[%emt 0:00:33]} 7. Bxc4 {[%emt 0:00:05]} b5 {[%emt 0:00:09]} 8. Bd3 {[%emt 0:00:07]} Bb7 {[%emt 0:01:49]} 9. e4 {[%emt 0:00:39]} b4 {[%emt 0:00:58]} 10. Na4 {[%emt 0:00:05]} c5 {[%emt 0:00:20]} 11. e5 {[%emt 0:00:16]} Nd5 {[%emt 0:00:18]} 12. O-O {[%emt 0:00:10]} cxd4 {[%emt 0:03:31]} 13. Nxd4 {[%emt 0:00:31]} Nxe5 {[%emt 0:00:51]} 14. Bb5+ {[%emt 0:00:05]} Nd7 {[%emt 0:00:26]} 15. Qh5 {[%emt 0:00:47]} N5f6 {[%emt 0:05:21]} 16. Nxe6 {[%emt 0:02:13]} Nxh5 {[%emt 0:02:12]} 17. Nxd8 {[%emt 0:00:06]} Rxd8 {[%emt 0:01:10]} 18. Re1+ {[%emt 0:00:17]} Be7 {[%emt 0:00:15]} 19. Nc5 {[%emt 0:00:30]} Bc8 {[%emt 0:02:14]} 20. Bg5 {[%emt 0:06:26]} f6 {[%emt 0:01:00]} 21. Bd2 {[%emt 0:02:01]} Kf7 {[%emt 0:20:27]} 22. Bc4+ {[%emt 0:02:56]} Kg6 {[%emt 0:04:43]} 23. Rxe7 {[%emt 0:03:53]} Ne5 {[%emt 0:05:16]} 24. Rxe5 {[%emt 0:01:36]} fxe5 {[%emt 0:00:51]} 25. Bxb4 {[%emt 0:00:24]} Rd4 {[%emt 0:03:12]} 26. b3 {[%emt 0:00:20]} Rhd8 {[%emt 0:01:58]} 27. h3 {[%emt 0:02:13]} Rd1+ {[%emt 0:02:16]} 28. Rxd1 {[%emt 0:01:21]} Rxd1+ {[%emt 0:00:07]} 29. Kh2 {[%emt 0:00:02]} Nf6 {[%emt 0:09:52]} 30. Bc3 {[%emt 0:05:55]} e4 {[%emt 0:01:40]} 31. Bxf6 {[%emt 0:03:27]} gxf6 {[%emt 0:19:07]} 32. Nxe4 {[%emt 0:00:08]} Bf5 {[%emt 0:00:21]} 33. Nc3 {[%emt 0:01:29]} Rd2 {[%emt 0:01:04]} 34. Nd5 {[%emt 0:05:33]} Kg7 {[%emt 0:01:17]} 35. Kg3 {[%emt 0:02:03]} Be6 {[%emt 0:02:04]} 36. Ne3 {[%emt 0:06:35]} Bxc4 {[%emt 0:00:33]} 37. Nxc4 {[%emt 0:00:06]} Rxa2 {[%emt 0:00:08]} 38. Kf3 {[%emt 0:00:19]} Rc2 {[%emt 0:05:57]} 39. Na5 {[%emt 0:00:47]} Kf7 {[%emt 0:02:22]} 40. h4 {[%emt 0:01:17]} h5 {[%emt 0:01:08]} 41. Ke3 {[%emt 0:30:15]} Ke6 {[%emt 0:30:49]} 42. g3 {[%emt 0:00:14]} Rc5 {[%emt 0:00:00]} 43. Nc4 {[%emt 0:00:00]} Rb5 {[%emt 0:00:00]} 44. Nd2 {[%emt 0:00:00]} Rb4 {[%emt 0:00:00]} 45. f3 {[%emt 0:00:00]} f5 {[%emt 0:00:00]} 46. Kd3 {[%emt 0:00:00]} Kd5 {[%emt 0:00:00]} 47. Kc3 {[%emt 0:00:00]} Rb8 {[%emt 0:00:00]} 48. Kd3 {[%emt 0:00:00]} Rb4 {[%emt 0:00:00]} 49. Kc3 {[%emt 0:00:00]} Rb8 {[%emt 0:00:00]} 50. Kd3 {[%emt 0:00:00]} Rg8 {[%emt 0:00:00]} 51. Nf1 {[%emt 0:00:00]} Ke5 {[%emt 0:00:00]} 52. Ke3 {[%emt 0:00:00]} Rg7 {[%emt 0:00:00]} 53. f4+ {[%emt 0:00:00]} Kd5 {[%emt 0:00:00]} 54. Kd3 {[%emt 0:00:00]} Rg8 {[%emt 0:00:00]} 55. Ne3+ {[%emt 0:00:00]} Ke6 {[%emt 0:00:00]} 56. Nf1 {[%emt 0:00:00]} Rc8 {[%emt 0:00:00]} 57. Kd2 {[%emt 0:00:00]} Kd5 {[%emt 0:00:00]} 58. Kd3 {[%emt 0:00:00]} Rc1 {[%emt 0:00:00]} 59. Ne3+ {[%emt 0:00:00]} Ke6 {[%emt 0:00:05]} 60. Nc2 {[%emt 0:00:00]} Kd5 {[%emt 0:05:42]} 61. Ne3+ {[%emt 0:00:00]} Kc5 {[%emt 0:03:16]} 62. Nxf5 {[%emt 0:00:00]} Kb4 {[%emt 0:00:07]} 63. Nd4 {[%emt 0:00:00]} Rc3+ {[%emt 0:00:51]} 64. Ke4 {[%emt 0:00:00]} Rxg3 {[%emt 0:00:11]} 65. Nc6+ {[%emt 0:06:47]} Kc5 {[%emt 0:00:35]} 66. Nd4 {[%emt 0:07:32]} a5 {[%emt 0:00:14]} 67. Ne6+ {[%emt 0:00:57]} Kd6 {[%emt 0:00:23]} 68. Nd4 {[%emt 0:01:35]} Rh3 {[%emt 0:01:17]} 69. Nf3 {[%emt 0:02:20]} Ke7 {[%emt 0:00:43]} 70. Nd4 {[%emt 0:01:00]} Kf6 {[%emt 0:00:22]} 71. Nc6 {[%emt 0:00:26]} Rxb3 {[%emt 0:00:24]} 72. Nxa5 {[%emt 0:00:06]} Rb4+ {[%emt 0:00:33]} 73. Kf3 {[%emt 0:03:31]} Kf5 {[%emt 0:00:06]} 74. Nc6 {[%emt 0:01:16]} Rb3+ {[%emt 0:00:13]} 75. Kg2 {[%emt 0:00:11]} Kxf4 {[%emt 0:00:07]} 76. Nd4 {[%emt 0:00:21]} Ra3 {[%emt 0:01:05]} 77. Ne2+ {[%emt 0:02:01]} Kg4 {[%emt 0:00:07]} 0-1

[Event "Groningen Festival 2018-B"]
[Site "Groningen"]
[Date "2018.12.30"]
[Round "9"]
[White "Haan, Gertjan"]
[Black "Wissmann, Dolf"]
[Result "1-0"]
[ECO "B12"]
[WhiteElo "1881"]
[BlackElo "2049"]
[Annotator "NA"]
[PlyCount "53"]
[EventDate "2018.12.22"]
[EventType "swiss"]
[EventCountry "NED"]
[SourceTitle "playchess.com"]
[Source "ChessBase"]
[SourceQuality "1"]
[TimeControl "40/5400+30:1800+30"]

1. e4 {[%emt 0:03:38]} c6 {[%emt 0:00:00]} 2. d4 {[%emt 0:00:12]} d6 {[%emt 0:00:00]} 3. c4 {[%emt 0:00:16]} Nd7 {[%emt 0:00:05]} 4. Nf3 {[%emt 0:00:24]} h6 {[%emt 0:02:13]} 5. Nc3 {[%emt 0:02:14]} g5 {[%emt 0:01:25]} 6. Be2 {[%emt 0:02:25]} Bg7 {[%emt 0:00:16]} 7. Be3 {[%emt 0:02:15]} Nf8 {[%emt 0:02:49]} 8. Qc2 {[%emt 0:06:15]} a6 {[%emt 0:01:07]} 9. O-O {[%emt 0:04:38]} Ng6 {[%emt 0:00:37]} 10. Rfd1 {[%emt 0:04:10]} Qc7 {[%emt 0:03:34]} 11. Rac1 {[%emt 0:06:03]} e6 {[%emt 0:02:44]} 12. d5 {[%emt 0:00:19]} N8e7 {[%emt 0:03:11]} 13. c5 {[%emt 0:06:48]} exd5 {[%emt 0:11:23]} 14. exd5 {[%emt 0:01:01]} Bf5 {[%emt 0:06:23]} 15. Qb3 {[%emt 0:02:33]} Bxc3 {[%emt 0:15:06]} 16. cxd6 {[%emt 0:00:47]} Qc8 {[%emt 0:05:32]} 17. Rxc3 {[%emt 0:01:17]} Ng8 {[%emt 0:05:16]} 18. dxc6 {[%emt 0:05:47]} bxc6 {[%emt 0:00:06]} 19. Qc4 {[%emt 0:00:11]} Bd7 {[%emt 0:06:02]} 20. Qe4+ {[%emt 0:01:03]} Kf8 {[%emt 0:00:43]} 21. Bd4 {[%emt 0:00:19]} Rh7 {[%emt 0:01:24]} 22. Ne5 {[%emt 0:00:25]} Nf4 {[%emt 0:02:25]} 23. Qxh7 {[%emt 0:00:30]} Nxe2+ {[%emt 0:02:41]} 24. Kf1 {[%emt 0:00:55]} Be6 {[%emt 0:00:02]} 25. Kxe2 {[%emt 0:01:05]} f6 {[%emt 0:04:24]} 26. d7 {[%emt 0:00:22]} Qd8 {[%emt 0:03:19]} 27. Ng6# {[%emt 0:47:38]} 1-0

[Event "Groningen Festival 2018-B"]
[Site "Groningen"]
[Date "2018.12.30"]
[Round "9"]
[White "Santema, Tjeerd"]
[Black "Tromp, Pieter"]
[Result "0-1"]
[ECO "D88"]
[WhiteElo "1776"]
[BlackElo "2080"]
[Annotator "NA"]
[PlyCount "62"]
[EventDate "2018.12.22"]
[EventType "swiss"]
[EventCountry "NED"]
[SourceTitle "playchess.com"]
[Source "ChessBase"]
[SourceQuality "1"]
[TimeControl "40/5400+30:1800+30"]

1. d4 {[%emt 0:00:00]} Nf6 {[%emt 0:00:03]} 2. c4 {[%emt 0:00:00]} g6 {[%emt 0:00:41]} 3. Nc3 {[%emt 0:00:00]} d5 {[%emt 0:01:40]} 4. cxd5 {[%emt 0:00:00]} Nxd5 {[%emt 0:00:19]} 5. e4 {[%emt 0:00:00]} Nxc3 {[%emt 0:05:41]} 6. bxc3 {[%emt 0:00:00]} c5 {[%emt 0:00:41]} 7. Bc4 {[%emt 0:00:06]} Bg7 {[%emt 0:00:48]} 8. Ne2 {[%emt 0:00:08]} O-O {[%emt 0:00:46]} 9. O-O {[%emt 0:00:15]} Nc6 {[%emt 0:02:30]} 10. Be3 {[%emt 0:00:06]} cxd4 {[%emt 0:01:29]} 11. cxd4 {[%emt 0:00:07]} Bd7 {[%emt 0:01:29]} 12. Qd2 {[%emt 0:03:28]} Rc8 {[%emt 0:01:44]} 13. Rab1 {[%emt 0:02:53]} Na5 {[%emt 0:06:03]} 14. Bd3 {[%emt 0:00:50]} a6 {[%emt 0:03:31]} 15. Bh6 {[%emt 0:06:00]} b5 {[%emt 0:05:04]} 16. Bxg7 {[%emt 0:03:04]} Kxg7 {[%emt 0:00:06]} 17. h4 {[%emt 0:03:41]} Nc4 {[%emt 0:01:37]} 18. Qf4 {[%emt 0:04:31]} Qc7 {[%emt 0:10:20]} 19. e5 {[%emt 0:01:46]} f6 {[%emt 0:01:39]} 20. Ng3 {[%emt 0:18:13]} Be8 {[%emt 0:23:14]} 21. Bxc4 {[%emt 0:19:00]} bxc4 {[%emt 0:04:02]} 22. Qe4 {[%emt 0:02:55]} Bc6 {[%emt 0:03:35]} 23. d5 {[%emt 0:01:22]} Ba8 {[%emt 0:00:06]} 24. Rfe1 {[%emt 0:15:30]} c3 {[%emt 0:06:30]} 25. Rbc1 {[%emt 0:01:37]} Qc4 {[%emt 0:01:42]} 26. exf6+ {[%emt 0:00:44]} exf6 {[%emt 0:00:09]} 27. Qe7+ {[%emt 0:01:58]} Rf7 {[%emt 0:00:08]} 28. Qa3 {[%emt 0:01:47]} Qxd5 {[%emt 0:00:33]} 29. f3 {[%emt 0:00:47]} Qd4+ {[%emt 0:00:18]} 30. Kf1 {[%emt 0:01:04]} Bd5 {[%emt 0:02:05]} 31. Ne4 {[%emt 0:01:46]} Bc4+ {[%emt 0:00:42]} 0-1